[Event "*** Qualifier 2: Titled Tuesday 3|2 Blitz"]
[Site "Chess.com"]
[Date "2017.04.11"]
[Round "5"]
[White "platy3"]
[Black "Kacparov"]
[Result "1/2-1/2"]
[WhiteElo "2645"]
[BlackElo "2591"]
[TimeControl "180+2"]
[EndTime "14:06:46 PDT"]
[Termination "Game drawn - insufficient material"]

1. e4 {[%clk 0:03:02]} 1... c5 {[%clk 0:03:00.9]} 2. Nf3 {[%clk 0:03:02.3]} 2...
Nc6 {[%clk 0:03:01.5]} 3. d4 {[%clk 0:02:59.8]} 3... cxd4 {[%clk 0:03:02.7]} 4.
Nxd4 {[%clk 0:03:01.7]} 4... e6 {[%clk 0:03:03.7]} 5. Nc3 {[%clk 0:03:02.6]}
5... Qc7 {[%clk 0:03:04.4]} 6. f4 {[%clk 0:03:03.9]} 6... a6 {[%clk 0:03:04.9]}
7. Nxc6 {[%clk 0:03:02.8]} 7... Qxc6 {[%clk 0:03:05.7]} 8. Bd3 {[%clk
0:03:02.9]} 8... b5 {[%clk 0:03:06.8]} 9. Qe2 {[%clk 0:03:02.3]} 9... Bb7 {[%clk
0:03:05.9]} 10. Bd2 {[%clk 0:03:02.1]} 10... Rc8 {[%clk 0:03:01.9]} 11. a3
{[%clk 0:03:01.8]} 11... Bc5 {[%clk 0:03:00.9]} 12. O-O-O {[%clk 0:03:02.4]}
12... Ne7 {[%clk 0:03:01.9]} 13. g4 {[%clk 0:02:58.3]} 13... O-O {[%clk
0:03:02.6]} 14. g5 {[%clk 0:02:52]} 14... d5 {[%clk 0:02:25.6]} 15. h4 {[%clk
0:02:32.7]} 15... dxe4 {[%clk 0:02:01]} 16. Nxe4 {[%clk 0:02:20.7]} 16... Nf5
{[%clk 0:01:42.3]} 17. Nxc5 {[%clk 0:01:51.3]} 17... Qxc5 {[%clk 0:01:41.9]} 18.
Bb4 {[%clk 0:01:46.5]} 18... Qe3+ {[%clk 0:01:30.3]} 19. Qxe3 {[%clk 0:01:44]}
19... Nxe3 {[%clk 0:01:32.2]} 20. Bxf8 {[%clk 0:01:40.7]} 20... Bxh1 {[%clk
0:01:29.2]} 21. Rxh1 {[%clk 0:01:40]} 21... Kxf8 {[%clk 0:01:23.8]} 22. h5
{[%clk 0:01:38.2]} 22... h6 {[%clk 0:01:18.6]} 23. Kd2 {[%clk 0:01:28.1]} 23...
Nd5 {[%clk 0:01:18.6]} 24. Rf1 {[%clk 0:01:29]} 24... Ke7 {[%clk 0:01:15.9]} 25.
gxh6 {[%clk 0:01:14.1]} 25... gxh6 {[%clk 0:01:16.7]} 26. f5 {[%clk 0:01:15.7]}
26... Nf6 {[%clk 0:01:14.6]} 27. fxe6 {[%clk 0:01:15.4]} 27... fxe6 {[%clk
0:01:15.8]} 28. a4 {[%clk 0:01:15.5]} 28... Rc5 {[%clk 0:01:16.3]} 29. axb5
{[%clk 0:01:15.6]} 29... axb5 {[%clk 0:01:18.2]} 30. Rh1 {[%clk 0:01:07.5]}
30... Nxh5 {[%clk 0:01:16.2]} 31. Rh4 {[%clk 0:01:01.6]} 31... Kf6 {[%clk
0:01:09.4]} 32. Rb4 {[%clk 0:01:02]} 32... Ng3 {[%clk 0:01:04.1]} 33. Rxb5
{[%clk 0:01:03]} 33... Rxb5 {[%clk 0:01:00]} 34. Bxb5 {[%clk 0:01:03.2]} 34...
h5 {[%clk 0:01:01.6]} 35. Bc6 {[%clk 0:01:01.9]} 35... h4 {[%clk 0:00:58.9]} 36.
Ke3 {[%clk 0:01:00.9]} 36... Ke5 {[%clk 0:00:54.8]} 37. b4 {[%clk 0:00:57.4]}
37... Nf5+ {[%clk 0:00:55.3]} 38. Kd3 {[%clk 0:00:57.2]} 38... h3 {[%clk
0:00:52.8]} 39. c4 {[%clk 0:00:47.1]} 39... Kd6 {[%clk 0:00:46.7]} 40. Ba8
{[%clk 0:00:45.1]} 40... h2 {[%clk 0:00:46]} 41. c5+ {[%clk 0:00:42.4]} 41...
Kc7 {[%clk 0:00:46.9]} 42. b5 {[%clk 0:00:40.5]} 42... Ng3 {[%clk 0:00:42.1]}
43. b6+ {[%clk 0:00:40]} 43... Kb8 {[%clk 0:00:42.9]} 44. Bg2 {[%clk 0:00:36.4]}
44... h1=Q {[%clk 0:00:35.7]} 45. Bxh1 {[%clk 0:00:37.3]} 45... Nxh1 {[%clk
0:00:37.6]} 46. Kd4 {[%clk 0:00:14.5]} 46... Kb7 {[%clk 0:00:36.2]} 47. Ke5
{[%clk 0:00:10.8]} 47... Kc6 {[%clk 0:00:37.3]} 48. Kxe6 {[%clk 0:00:11.7]}
48... Ng3 {[%clk 0:00:31.1]} 49. b7 {[%clk 0:00:12.6]} 49... Kc7 {[%clk
0:00:30]} 50. c6 {[%clk 0:00:05.3]} 50... Ne4 {[%clk 0:00:29.4]} 51. Ke7 {[%clk
0:00:05.4]} 51... Nc5 {[%clk 0:00:28]} 52. Ke8 {[%clk 0:00:05.3]} 52... Nxb7
{[%clk 0:00:28.3]} 53. cxb7 {[%clk 0:00:06.1]} 53... Kxb7 {[%clk 0:00:30.2]}
1/2-1/2

[Event "*** Qualifier 2: Titled Tuesday 3|2 Blitz"]
[Site "Chess.com"]
[Date "2017.04.11"]
[Round "5"]
[White "Generalas"]
[Black "rpragchess"]
[Result "0-1"]
[WhiteElo "2216"]
[BlackElo "2262"]
[TimeControl "180+2"]
[EndTime "14:06:50 PDT"]
[Termination "rpragchess won by resignation"]

1. Nf3 {[%clk 0:03:02]} 1... Nf6 {[%clk 0:02:59.8]} 2. g3 {[%clk 0:03:01.9]}
2... b5 {[%clk 0:02:59.8]} 3. Bg2 {[%clk 0:03:02.3]} 3... Bb7 {[%clk 0:03:00.3]}
4. O-O {[%clk 0:03:02.8]} 4... e6 {[%clk 0:03:01.1]} 5. c3 {[%clk 0:03:03.5]}
5... c5 {[%clk 0:03:01.7]} 6. d4 {[%clk 0:03:02.1]} 6... d5 {[%clk 0:03:02.3]}
7. a4 {[%clk 0:03:00]} 7... b4 {[%clk 0:03:02.5]} 8. dxc5 {[%clk 0:02:59.2]}
8... Bxc5 {[%clk 0:03:02.2]} 9. cxb4 {[%clk 0:02:59.8]} 9... Bxb4 {[%clk
0:03:03.1]} 10. Qb3 {[%clk 0:02:54]} 10... a5 {[%clk 0:03:01.8]} 11. Nc3 {[%clk
0:02:46.4]} 11... Ba6 {[%clk 0:02:52.9]} 12. Nb5 {[%clk 0:02:12.9]} 12... O-O
{[%clk 0:02:33.8]} 13. Bg5 {[%clk 0:02:03.4]} 13... Nbd7 {[%clk 0:02:30.6]} 14.
Rfd1 {[%clk 0:01:59.7]} 14... h6 {[%clk 0:02:30.8]} 15. Bd2 {[%clk 0:01:58.1]}
15... Bxb5 {[%clk 0:02:19.3]} 16. axb5 {[%clk 0:01:56]} 16... Bxd2 {[%clk
0:02:18.3]} 17. Nxd2 {[%clk 0:01:46.3]} 17... Nc5 {[%clk 0:02:17.1]} 18. Qa3
{[%clk 0:01:17.1]} 18... Qb6 {[%clk 0:02:11.5]} 19. b4 {[%clk 0:00:59.3]} 19...
Nb7 {[%clk 0:02:12]} 20. e4 {[%clk 0:00:43]} 20... Qxb5 {[%clk 0:02:07]} 21.
exd5 {[%clk 0:00:36.8]} 21... Nxd5 {[%clk 0:02:06.2]} 22. bxa5 {[%clk
0:00:30.8]} 22... Rxa5 {[%clk 0:02:05]} 23. Qf3 {[%clk 0:00:30.2]} 23... Rxa1
{[%clk 0:02:02.2]} 24. Rxa1 {[%clk 0:00:30.5]} 24... Qb2 {[%clk 0:02:03.4]} 25.
Qd1 {[%clk 0:00:25.8]} 25... Nc3 {[%clk 0:02:01]} 26. Qe1 {[%clk 0:00:26.4]}
26... Nc5 {[%clk 0:02:00.7]} 27. Nc4 {[%clk 0:00:20.4]} 27... Qb4 {[%clk
0:02:00.9]} 28. Rc1 {[%clk 0:00:17.2]} 28... Qxc4 {[%clk 0:01:56.2]} 29. Rxc3
{[%clk 0:00:17.1]} 29... Qb4 {[%clk 0:01:55.6]} 30. Qc1 {[%clk 0:00:16.8]} 30...
Nd7 {[%clk 0:01:52.8]} 31. Re3 {[%clk 0:00:15.6]} 31... Nf6 {[%clk 0:01:53.2]}
32. h3 {[%clk 0:00:14.5]} 32... Qd4 {[%clk 0:01:52.5]} 33. Qe1 {[%clk
0:00:14.1]} 33... Rd8 {[%clk 0:01:52.6]} 34. Kh2 {[%clk 0:00:14.3]} 34... Qd1
{[%clk 0:01:51.5]} 35. Qxd1 {[%clk 0:00:14.6]} 35... Rxd1 {[%clk 0:01:51.7]} 36.
f4 {[%clk 0:00:16.3]} 36... Rd2 {[%clk 0:01:52.6]} 37. Kg1 {[%clk 0:00:16.7]}
37... Kh7 {[%clk 0:01:52.2]} 38. Kf1 {[%clk 0:00:16.5]} 38... Rb2 {[%clk
0:01:51.2]} 39. Re2 {[%clk 0:00:17.3]} 39... Rb3 {[%clk 0:01:51.2]} 40. Kf2
{[%clk 0:00:17.9]} 40... Nh5 {[%clk 0:01:52.2]} 41. Bf3 {[%clk 0:00:18.5]} 41...
Nf6 {[%clk 0:01:53.4]} 42. Bg2 {[%clk 0:00:19.3]} 42... g5 {[%clk 0:01:52.3]}
43. Re3 {[%clk 0:00:16.7]} 43... Rb4 {[%clk 0:01:51.1]} 44. fxg5 {[%clk
0:00:15.5]} 44... hxg5 {[%clk 0:01:52.6]} 45. Bf1 {[%clk 0:00:16.5]} 45... Nd5
{[%clk 0:01:49.4]} 46. Rf3 {[%clk 0:00:16.8]} 46... f5 {[%clk 0:01:48.6]} 47.
Bg2 {[%clk 0:00:14.9]} 47... Kg6 {[%clk 0:01:48.4]} 48. Rd3 {[%clk 0:00:14.5]}
48... Rb2+ {[%clk 0:01:46.8]} 49. Kg1 {[%clk 0:00:15.4]} 49... Ne7 {[%clk
0:01:46.3]} 50. Ra3 {[%clk 0:00:12.8]} 50... Kf6 {[%clk 0:01:46.9]} 51. Ra5
{[%clk 0:00:12.4]} 51... Rb6 {[%clk 0:01:44]} 52. Bf1 {[%clk 0:00:12]} 52... e5
{[%clk 0:01:44.2]} 53. Bc4 {[%clk 0:00:11.5]} 53... Rc6 {[%clk 0:01:44.1]} 54.
Be2 {[%clk 0:00:11.1]} 54... f4 {[%clk 0:01:36.2]} 55. gxf4 {[%clk 0:00:11]}
55... gxf4 {[%clk 0:01:37.1]} 56. Ra6 {[%clk 0:00:12.1]} 56... e4 {[%clk
0:01:34.9]} 57. Kf2 {[%clk 0:00:10.6]} 57... Rxa6 {[%clk 0:01:34.1]} 58. Bxa6
{[%clk 0:00:10.7]} 58... Ng6 {[%clk 0:01:35.3]} 59. Bb7 {[%clk 0:00:10.9]} 59...
Kf5 {[%clk 0:01:36.3]} 60. Bc8+ {[%clk 0:00:11]} 60... Kg5 {[%clk 0:01:36.2]}
61. Bb7 {[%clk 0:00:10.1]} 61... e3+ {[%clk 0:01:37.7]} 62. Ke2 {[%clk
0:00:08.4]} 62... Ne5 {[%clk 0:01:39.3]} 63. Bg2 {[%clk 0:00:08]} 63... Kh4
{[%clk 0:01:40.2]} 64. Bf1 {[%clk 0:00:04]} 64... Kg3 {[%clk 0:01:41]} 65. Ke1
{[%clk 0:00:05.1]} 65... f3 {[%clk 0:01:41.6]} 66. Kd1 {[%clk 0:00:04.1]} 66...
Kf2 {[%clk 0:01:40.5]} 67. Bb5 {[%clk 0:00:04.8]} 67... e2+ {[%clk 0:01:40.9]}
0-1

[Event "*** Qualifier 2: Titled Tuesday 3|2 Blitz"]
[Site "Chess.com"]
[Date "2017.04.11"]
[Round "5"]
[White "GamayevOleg"]
[Black "StarkAst"]
[Result "1/2-1/2"]
[WhiteElo "2387"]
[BlackElo "2341"]
[TimeControl "180+2"]
[EndTime "14:06:51 PDT"]
[Termination "Game drawn by stalemate"]

1. d3 {[%clk 0:03:01.9]} 1... d5 {[%clk 0:03:00.6]} 2. e4 {[%clk 0:03:03.8]}
2... dxe4 {[%clk 0:03:01.1]} 3. dxe4 {[%clk 0:03:05.7]} 3... Qxd1+ {[%clk
0:03:01.9]} 4. Kxd1 {[%clk 0:03:07.6]} 4... e5 {[%clk 0:03:02.7]} 5. Nf3 {[%clk
0:03:09]} 5... f6 {[%clk 0:03:01.9]} 6. Nfd2 {[%clk 0:03:10.2]} 6... c6 {[%clk
0:03:00.3]} 7. f3 {[%clk 0:03:11.6]} 7... Bc5 {[%clk 0:02:59]} 8. c3 {[%clk
0:03:13.5]} 8... Ne7 {[%clk 0:02:59.4]} 9. Kc2 {[%clk 0:03:15.4]} 9... Be6
{[%clk 0:02:57.6]} 10. a4 {[%clk 0:03:17.3]} 10... a5 {[%clk 0:02:57.8]} 11. Bc4
{[%clk 0:03:18.8]} 11... Bxc4 {[%clk 0:02:57.4]} 12. Nxc4 {[%clk 0:03:20.7]}
12... Nd7 {[%clk 0:02:55.7]} 13. Nbd2 {[%clk 0:03:21.8]} 13... Nc8 {[%clk
0:02:51.3]} 14. Nb3 {[%clk 0:03:22.7]} 14... Ke7 {[%clk 0:02:45.7]} 15. Rd1
{[%clk 0:03:23.5]} 15... Bb6 {[%clk 0:02:21.7]} 16. Bd2 {[%clk 0:03:20.3]} 16...
Ra6 {[%clk 0:02:14.3]} 17. Be1 {[%clk 0:03:20.5]} 17... Bc7 {[%clk 0:01:58.1]}
18. Rd2 {[%clk 0:03:17.3]} 18... Rd8 {[%clk 0:01:55.6]} 19. Rad1 {[%clk
0:03:16.8]} 19... b6 {[%clk 0:01:52.6]} 20. Bf2 {[%clk 0:03:15]} 20... Nf8
{[%clk 0:01:30.1]} 21. Rxd8 {[%clk 0:03:13]} 21... Bxd8 {[%clk 0:01:31]} 22. Ne3
{[%clk 0:03:14.9]} 22... g6 {[%clk 0:01:29.6]} 23. Nc4 {[%clk 0:03:12.1]} 23...
Ne6 {[%clk 0:01:28.1]} 24. Be3 {[%clk 0:03:11.8]} 24... Bc7 {[%clk 0:01:28.3]}
25. Na3 {[%clk 0:03:11]} 25... Nd6 {[%clk 0:01:27]} 26. Nd2 {[%clk 0:03:09.7]}
26... Ra8 {[%clk 0:01:20.2]} 27. Ndc4 {[%clk 0:03:08.6]} 27... Nxc4 {[%clk
0:01:20.8]} 28. Nxc4 {[%clk 0:03:09.3]} 28... b5 {[%clk 0:01:15.7]} 29. axb5
{[%clk 0:03:10.1]} 29... cxb5 {[%clk 0:01:17.6]} 30. Na3 {[%clk 0:03:09.9]}
30... b4 {[%clk 0:01:16.7]} 31. Nc4 {[%clk 0:03:10.9]} 31... bxc3 {[%clk
0:01:15.1]} 32. bxc3 {[%clk 0:03:12.4]} 32... Nf4 {[%clk 0:01:05]} 33. Bxf4
{[%clk 0:03:12.9]} 33... exf4 {[%clk 0:01:06.9]} 34. Na3 {[%clk 0:03:08.1]}
34... h5 {[%clk 0:00:56]} 35. h3 {[%clk 0:03:07.2]} 35... g5 {[%clk 0:00:56.9]}
36. Nb5 {[%clk 0:03:07.1]} 36... Be5 {[%clk 0:00:55.8]} 37. Ra1 {[%clk
0:03:04.8]} 37... g4 {[%clk 0:00:55.4]} 38. hxg4 {[%clk 0:03:05.6]} 38... hxg4
{[%clk 0:00:57.2]} 39. Kd3 {[%clk 0:03:07.5]} 39... gxf3 {[%clk 0:00:56.9]} 40.
gxf3 {[%clk 0:03:08.3]} 40... Rd8+ {[%clk 0:00:57.8]} 41. Nd4 {[%clk 0:03:09.1]}
41... Ra8 {[%clk 0:00:53.9]} 42. Kc4 {[%clk 0:03:09.2]} 42... Kd7 {[%clk
0:00:51.6]} 43. Kb5 {[%clk 0:03:08.1]} 43... Rc8 {[%clk 0:00:51.1]} 44. Ra3
{[%clk 0:03:05.9]} 44... Rb8+ {[%clk 0:00:45.1]} 45. Kc4 {[%clk 0:03:04.9]}
45... Rb1 {[%clk 0:00:45.5]} 46. Rxa5 {[%clk 0:03:03.9]} 46... Rf1 {[%clk
0:00:45.6]} 47. Kd5 {[%clk 0:03:01.3]} 47... Rc1 {[%clk 0:00:35.1]} 48. Ra7+
{[%clk 0:02:59.9]} 48... Kc8 {[%clk 0:00:36.3]} 49. Ra3 {[%clk 0:02:52.8]} 49...
Kd7 {[%clk 0:00:34.3]} 50. Rb3 {[%clk 0:02:50.9]} 50... Rf1 {[%clk 0:00:33.5]}
51. Rb6 {[%clk 0:02:41.9]} 51... Rc1 {[%clk 0:00:31]} 52. Rc6 {[%clk 0:02:39.3]}
52... Ke7 {[%clk 0:00:14.7]} 53. Rc4 {[%clk 0:02:23.3]} 53... Kd7 {[%clk
0:00:14.2]} 54. Rc5 {[%clk 0:02:22]} 54... Ke7 {[%clk 0:00:15.1]} 55. Kc4 {[%clk
0:02:12.4]} 55... Rf1 {[%clk 0:00:14.8]} 56. Kd5 {[%clk 0:02:11.1]} 56... Rc1
{[%clk 0:00:15.4]} 57. Ra5 {[%clk 0:02:11]} 57... Rxc3 {[%clk 0:00:14.1]} 58.
Ra7+ {[%clk 0:02:12.5]} 58... Kd8 {[%clk 0:00:10.7]} 59. Nc6+ {[%clk 0:02:11.8]}
59... Kc8 {[%clk 0:00:09.6]} 60. Nxe5 {[%clk 0:02:09.8]} 60... fxe5 {[%clk
0:00:10.8]} 61. Kxe5 {[%clk 0:02:10.6]} 61... Rxf3 {[%clk 0:00:12]} 62. Rf7
{[%clk 0:02:11.6]} 62... Kd8 {[%clk 0:00:05.8]} 63. Rxf4 {[%clk 0:02:10.5]}
63... Ra3 {[%clk 0:00:06.9]} 64. Rf7 {[%clk 0:02:03.4]} 64... Ke8 {[%clk
0:00:07]} 65. Rb7 {[%clk 0:02:03.7]} 65... Ra6 {[%clk 0:00:07.9]} 66. Kf5 {[%clk
0:02:04.5]} 66... Rc6 {[%clk 0:00:08.6]} 67. e5 {[%clk 0:02:05.5]} 67... Ra6
{[%clk 0:00:09.7]} 68. Rh7 {[%clk 0:02:04.9]} 68... Rb6 {[%clk 0:00:10.8]} 69.
Rg7 {[%clk 0:02:06.5]} 69... Ra6 {[%clk 0:00:12.1]} 70. Rg6 {[%clk 0:02:08]}
70... Rxg6 {[%clk 0:00:09.8]} 71. Kxg6 {[%clk 0:02:09.2]} 71... Ke7 {[%clk
0:00:11.3]} 72. Kf5 {[%clk 0:02:11.1]} 72... Kf7 {[%clk 0:00:12.7]} 73. e6+
{[%clk 0:02:13]} 73... Ke7 {[%clk 0:00:14.1]} 74. Ke5 {[%clk 0:02:14.9]} 74...
Ke8 {[%clk 0:00:15.5]} 75. Kf6 {[%clk 0:02:16.8]} 75... Kf8 {[%clk 0:00:16.8]}
76. Ke5 {[%clk 0:02:17.6]} 76... Ke7 {[%clk 0:00:18.1]} 77. Kd5 {[%clk
0:02:19.5]} 77... Ke8 {[%clk 0:00:19.5]} 78. Ke5 {[%clk 0:02:20.7]} 78... Ke7
{[%clk 0:00:20.8]} 79. Kd5 {[%clk 0:02:22.6]} 79... Ke8 {[%clk 0:00:21.8]} 80.
Kd6 {[%clk 0:02:24.5]} 80... Kd8 {[%clk 0:00:23]} 81. Ke5 {[%clk 0:02:26.4]}
81... Ke7 {[%clk 0:00:24.3]} 82. Kd5 {[%clk 0:02:28]} 82... Ke8 {[%clk
0:00:25.2]} 83. Kd6 {[%clk 0:02:29.9]} 83... Kd8 {[%clk 0:00:26.5]} 84. e7+
{[%clk 0:02:31.8]} 84... Ke8 {[%clk 0:00:27.7]} 85. Ke6 {[%clk 0:02:33.7]}
1/2-1/2

[Event "*** Qualifier 2: Titled Tuesday 3|2 Blitz"]
[Site "Chess.com"]
[Date "2017.04.11"]
[Round "5"]
[White "bilelou"]
[Black "Rating-Schmating"]
[Result "1-0"]
[WhiteElo "2347"]
[BlackElo "2248"]
[TimeControl "180+2"]
[EndTime "14:07:14 PDT"]
[Termination "bilelou won by checkmate"]

1. e4 {[%clk 0:02:53.9]} 1... e6 {[%clk 0:03:00.7]} 2. d4 {[%clk 0:02:51.3]}
2... d5 {[%clk 0:03:01.5]} 3. Nc3 {[%clk 0:02:51.5]} 3... Bb4 {[%clk 0:03:02.2]}
4. e5 {[%clk 0:02:51.9]} 4... c5 {[%clk 0:03:02.8]} 5. a3 {[%clk 0:02:53.6]}
5... Bxc3+ {[%clk 0:03:04.1]} 6. bxc3 {[%clk 0:02:55.3]} 6... Qc7 {[%clk
0:03:05.3]} 7. Qg4 {[%clk 0:02:55.8]} 7... f5 {[%clk 0:03:06]} 8. Qg3 {[%clk
0:02:54]} 8... Nc6 {[%clk 0:03:06.7]} 9. Ne2 {[%clk 0:02:52.6]} 9... cxd4 {[%clk
0:03:06.5]} 10. cxd4 {[%clk 0:02:53]} 10... Nge7 {[%clk 0:03:07.7]} 11. Bd2
{[%clk 0:02:48.5]} 11... O-O {[%clk 0:03:07]} 12. h4 {[%clk 0:02:49.4]} 12... f4
{[%clk 0:03:03.7]} 13. Qf3 {[%clk 0:02:42.7]} 13... Na5 {[%clk 0:02:56.7]} 14.
c3 {[%clk 0:02:37.7]} 14... Nb3 {[%clk 0:02:57.2]} 15. Rb1 {[%clk 0:02:34.9]}
15... Nxd2 {[%clk 0:02:58]} 16. Kxd2 {[%clk 0:02:36.3]} 16... Nf5 {[%clk
0:02:56.5]} 17. Nxf4 {[%clk 0:02:36.3]} 17... Qa5 {[%clk 0:02:56]} 18. Bd3
{[%clk 0:02:35.8]} 18... Nxd4 {[%clk 0:02:54.5]} 19. Qg4 {[%clk 0:01:50.3]}
19... Nf5 {[%clk 0:02:52]} 20. Nh5 {[%clk 0:01:47.3]} 20... Qc7 {[%clk
0:02:49.1]} 21. Rhe1 {[%clk 0:01:36.9]} 21... Qf7 {[%clk 0:02:47.5]} 22. f3
{[%clk 0:01:28.2]} 22... Nh6 {[%clk 0:02:44.9]} 23. Qg5 {[%clk 0:01:28]} 23...
Kh8 {[%clk 0:02:28.9]} 24. Rb4 {[%clk 0:01:17.3]} 24... b6 {[%clk 0:02:18.5]}
25. Rf4 {[%clk 0:01:15.5]} 25... Nf5 {[%clk 0:02:13.6]} 26. Qg4 {[%clk
0:00:43.8]} 26... Bd7 {[%clk 0:02:06.6]} 27. Ng3 {[%clk 0:00:34.3]} 27... g6
{[%clk 0:02:00.7]} 28. h5 {[%clk 0:00:34.5]} 28... Rg8 {[%clk 0:01:47.5]} 29.
Bxf5 {[%clk 0:00:15.3]} 29... gxf5 {[%clk 0:01:44.5]} 30. Qh4 {[%clk 0:00:15.7]}
30... Qg7 {[%clk 0:01:41.9]} 31. Ne2 {[%clk 0:00:16.6]} 31... Qg5 {[%clk
0:01:41.6]} 32. Qxg5 {[%clk 0:00:16.7]} 32... Rxg5 {[%clk 0:01:43.5]} 33. g4
{[%clk 0:00:18.2]} 33... Rf8 {[%clk 0:01:39.3]} 34. Nd4 {[%clk 0:00:18.6]} 34...
Kg8 {[%clk 0:01:38.3]} 35. gxf5 {[%clk 0:00:19.9]} 35... exf5 {[%clk 0:01:37.2]}
36. e6 {[%clk 0:00:21.5]} 36... Be8 {[%clk 0:01:37.1]} 37. e7 {[%clk 0:00:23]}
37... Rf7 {[%clk 0:01:37.5]} 38. h6 {[%clk 0:00:23.6]} 38... Rf6 {[%clk
0:01:34.6]} 39. Re6 {[%clk 0:00:22.9]} 39... Kf7 {[%clk 0:01:29.5]} 40. Re5
{[%clk 0:00:24]} 40... Rg2+ {[%clk 0:01:27.1]} 41. Ke3 {[%clk 0:00:24.3]} 41...
Rg5 {[%clk 0:01:23.6]} 42. Kf2 {[%clk 0:00:24.3]} 42... Rh5 {[%clk 0:01:24.4]}
43. Kg3 {[%clk 0:00:24.5]} 43... Rg5+ {[%clk 0:01:19.7]} 44. Kf2 {[%clk
0:00:25.6]} 44... Rh5 {[%clk 0:01:20.8]} 45. Rxd5 {[%clk 0:00:26.9]} 45... Kxe7
{[%clk 0:01:18.4]} 46. Nxf5+ {[%clk 0:00:27.4]} 46... Kf7 {[%clk 0:01:17.3]} 47.
Nd6+ {[%clk 0:00:27.7]} 47... Ke7 {[%clk 0:01:11]} 48. Nxe8 {[%clk 0:00:27]}
48... Rxf4 {[%clk 0:01:10.2]} 49. Rxh5 {[%clk 0:00:25.8]} 49... Kxe8 {[%clk
0:01:10.6]} 50. Rg5 {[%clk 0:00:26.5]} 50... Rh4 {[%clk 0:01:10.1]} 51. Rg8+
{[%clk 0:00:27.6]} 51... Kf7 {[%clk 0:01:06.9]} 52. Rg7+ {[%clk 0:00:29.5]}
52... Kf6 {[%clk 0:01:08.6]} 53. Rxh7 {[%clk 0:00:31.1]} 53... a5 {[%clk
0:01:09.9]} 54. Rb7 {[%clk 0:00:31.8]} 54... Ke5 {[%clk 0:01:01.4]} 55. Rxb6
{[%clk 0:00:19.8]} 55... Kf4 {[%clk 0:01:02.5]} 56. Rf6+ {[%clk 0:00:17.7]}
56... Kg5 {[%clk 0:01:01.5]} 57. Rc6 {[%clk 0:00:19.3]} 57... a4 {[%clk
0:01:00]} 58. Kg3 {[%clk 0:00:20.1]} 58... Rh1 {[%clk 0:01:00.4]} 59. f4+ {[%clk
0:00:21.3]} 59... Kf5 {[%clk 0:01:01.7]} 60. c4 {[%clk 0:00:22.1]} 60... Rf1
{[%clk 0:01:02.1]} 61. h7 {[%clk 0:00:21.9]} 61... Rg1+ {[%clk 0:01:03.6]} 62.
Kh2 {[%clk 0:00:21.3]} 62... Rf1 {[%clk 0:01:03.7]} 63. h8=Q {[%clk 0:00:21.8]}
63... Rxf4 {[%clk 0:01:05.6]} 64. Rf6+ {[%clk 0:00:21.8]} 64... Ke4 {[%clk
0:01:07.2]} 65. Rxf4+ {[%clk 0:00:23.1]} 65... Kd3 {[%clk 0:01:09]} 66. c5
{[%clk 0:00:24.4]} 66... Ke2 {[%clk 0:01:10.4]} 67. c6 {[%clk 0:00:26]} 67...
Kd1 {[%clk 0:01:12]} 68. c7 {[%clk 0:00:27.7]} 68... Kc2 {[%clk 0:01:11.9]} 69.
c8=Q+ {[%clk 0:00:28.5]} 69... Kb1 {[%clk 0:01:13.8]} 70. Qa1+ {[%clk
0:00:29.4]} 70... Kxa1 {[%clk 0:01:14.3]} 71. Qc1+ {[%clk 0:00:31]} 71... Ka2
{[%clk 0:01:15.6]} 72. Rf2+ {[%clk 0:00:31.8]} 72... Kb3 {[%clk 0:01:16.9]} 73.
Rf3+ {[%clk 0:00:32.8]} 73... Ka2 {[%clk 0:01:18.1]} 74. Qc2+ {[%clk 0:00:34.4]}
74... Ka1 {[%clk 0:01:19.4]} 75. Rf1# {[%clk 0:00:36]} 1-0